Cogmind - Beta 15 @@@ ROGUE MODE // 2025.06.09 @ 04:27:05 Player: The Gourd Result: Destroyed by Triborg with Siege Cannon Performance ------------- Evolutions (3) 1500 Regions Visited (11) 2200 Robots Destroyed (269) 1345 Value Destroyed (7054) 7054 Prototype IDs (30) 600 Alien Tech Used (0) 0 Bonus (843) 843 TOTAL SCORE: 13542 Bonus ------- High Alert Combat Kills 263 Follower Combat Kills 512 Aligned with FarCom 300 Friendly Fire -232 Cogmind --------- Core Integrity 0/700 Matter 300/300 Energy 99/100 System Corruption 0% Temperature Cool (0) Movement Core (50) Location -7/Scraptown Parts ------- > --- POWER (1) -------- (None) > --- PROPULSION (6) --- (None) > --- UTILITY (4) ------ (None) > --- WEAPON (2) ------- (None) > --- INVENTORY (5) ---- Improved Deuterium Engine Heavy Armor Plating Improved System Shield Authchip [Processor] Peak State ------------ > --- POWER ------------ Light Deuterium Engine > --- PROPULSION ------- Advanced Treads Advanced Treads Advanced Treads Advanced Treads Advanced Treads Advanced Treads > --- UTILITY ---------- Humpback Medium Reactive Plating Hacking Suite > --- WEAPON ----------- Minigun Precision Assault Rifle > --- INVENTORY -------- Cooled Ion Engine Micro Nuclear Core Light Treads Light Treads Light Treads Light Treads Light Treads Advanced Treads Advanced Treads High-capacity Matter Pod High-capacity Matter Pod Hardened Medium Armor Plating Hardened Medium Armor Plating Improved Light Armor Plating Medium Reactive Plating Medium Reactive Plating Medium Reflective Plating Hacking Suite System Shield Army-in-a-Box Improved Assault Rifle Minigun Flak Gun Assault Cannon Assault Cannon Assault Cannon Gauss Cannon Rocket Launcher Datajack Makeshift Hammer [Rating: 51] Favorites ----------- Power Improved Ion Engine Engine Improved Ion Engine Power Core Light Nuclear Core Propulsion Light Treads Treads Light Treads Wheel Compact Wheel Flight Unit Cooled VTOL Module Utility Hardened Medium Armor Plating Device Structural Scanner Storage Humpback Hackware Hacking Suite Protection Hardened Medium Armor Plating Weapon Minigun Energy Gun Small Laser Energy Cannon Advanced Beam Cannon Ballistic Gun Minigun Ballistic Cannon Advanced Assault Cannon Launcher Mini Grenade Launcher Special Weapon Remote Datajack Impact Weapon Makeshift Hammer Slashing Weapon Mining Claw Build | -11 -10 -10 -9 -9 -9 -8 -8 -7 -7 -7 -7 ------- Run | Yrd Mat Min Mat Min Exi Min Mat Fac Sto Rec Scr Slots Evolved 6 | . . . 2 . . . 2 2 . . . Power . | . . . . . . . . . . . . Propulsion 4 | . . . 1 . . . 2 1 . . . Utility 2 | . . . 1 . . . . 1 . . . Weapon . | . . . . . . . . . . . . Parts Attached 135 | 7 17 6 24 5 1 1 19 22 17 6 10 Power 19 | 1 3 . 5 . . . 5 1 3 . 1 Engine 16 | 1 3 . 5 . . . 3 1 2 . 1 Core 3 | . . . . . . . 2 . 1 . . Reactor . | . . . . . . . . . . . . Propulsion 50 | 2 2 1 7 3 . . 11 11 7 3 3 Treads 47 | 2 1 1 7 3 . . 10 10 7 3 3 Leg . | . . . . . . . . . . . . Wheel 1 | . 1 . . . . . . . . . . Hover . | . . . . . . . . . . . . Flight 2 | . . . . . . . 1 1 . . . Utility 34 | 2 4 2 4 2 1 . . 8 4 1 6 Device 9 | 1 2 . . . . . . 4 . . 2 Storage 6 | 1 1 . . . 1 . . . 2 . 1 Processor . | . . . . . . . . . . . . Hackware 4 | . . . 1 . . . . 2 1 . . Protection 15 | . 1 2 3 2 . . . 2 1 1 3 Artifact . | . . . . . . . . . . . . Weapon 32 | 2 8 3 8 . . 1 3 2 3 2 . Energy Gun 2 | 2 . . . . . . . . . . . Energy Cannon 1 | . . . 1 . . . . . . . . Ballistic Gun 13 | . 4 . 7 . . . . 1 1 . . Ballistic Cannon 2 | . . . . . . . . 1 1 . . Launcher 10 | . 2 2 . . . 1 3 . 1 1 . Special Weapon 2 | . 1 . . . . . . . . 1 . Impact Weapon 1 | . . 1 . . . . . . . . . Slashing Weapon 1 | . 1 . . . . . . . . . . Piercing Weapon . | . . . . . . . . . . . . Special Melee Weapon . | . . . . . . . . . . . . Unidentified Prototypes 7 | . . . 4 . . . 1 2 . . . Parts Lost 36 | . 3 4 . 1 . . 1 3 10 1 13 Power 5 | . 1 2 . . . . . . 1 . 1 Propulsion 12 | . . . . . . . 1 . 7 . 4 Utility 14 | . 1 2 . 1 . . . 2 2 1 5 Weapon 5 | . 1 . . . . . . 1 . . 3 Highest Loss Streak 12 | . 2 2 . 1 . . 1 2 5 1 12 To Critical Strikes . | . . . . . . . . . . . . Average Backups 23 | 3 17 24 24 24 23 28 29 29 12 9 16 Power 1 | 1 2 2 2 1 1 1 1 1 . . . Propulsion 5 | 1 3 4 5 10 7 10 6 7 2 1 1 Utility 8 | . 4 9 8 5 7 9 12 11 4 4 9 Weapon 7 | 1 5 7 8 7 6 7 8 8 4 3 4 Tool/Special . | . . . . . . . . . . . . Unused Backups 68 | . 1 3 21 . 1 . 11 6 11 1 13 Power 7 | . . 1 5 . . . . . . . 1 Propulsion 13 | . 1 . 1 . . . 6 1 4 . . Utility 26 | . . 1 8 . 1 . 1 2 4 . 9 Weapon 20 | . . 1 7 . . . 4 3 2 1 2 Tool/Special 2 | . . . . . . . . . 1 . 1 Average Slot Usage (%) 95 | . 98 100 99 99 93 88 89 91 95 93 99 Engine 9 | . 13 14 11 11 11 11 7 7 5 7 6 Treads 37 | . 17 28 32 33 33 33 44 45 44 39 45 Storage 9 | . 14 14 11 11 11 11 9 7 6 7 6 Hackware 4 | . . . 10 9 . . . 6 9 7 6 Protection 10 | . 6 14 11 12 15 11 8 7 11 14 8 Ballistic Gun 13 | . 19 15 19 21 22 12 15 10 9 6 . Launcher 2 | . 2 8 1 . . 9 1 3 . . 1 Impact Weapon 1 | . . 4 . . . . . . 3 5 6 Peak Build Rating 51 | 7 12 15 26 26 30 29 33 51 47 33 37 Average Rating 27 | 5 9 12 22 25 28 28 31 46 37 32 32 On Entrance 23 | . 7 11 15 26 26 29 28 30 46 31 31 Naked Turns 7 | . . . . . . . . . . . 7 Heaviest Build 241 | 11 92 94 101 108 221 221 221 241 232 46 80 Greatest Support 133 | 40 40 40 66 66 66 66 106 133 128 120 120 Greatest Overweight (x) 5 | . 5 2 2 1 3 3 2 2 1 . . Average Overweight (x) 1 | . 4 2 1 1 1 3 2 1 . . . Largest Inventory Capacity 35 | 8 25 25 25 25 35 35 35 35 35 10 20 Average Capacity 26 | 7 23 25 25 25 30 35 35 35 14 10 19 Most Carried 35 | 6 25 25 25 25 33 34 35 35 34 10 20 Average Carried 25 | 3 17 24 24 24 27 33 34 34 13 9 17 Final Capacity 35 | 8 25 25 25 25 35 35 35 35 10 10 5 Final Carried 35 | 6 25 24 25 24 33 34 35 34 10 8 5 Class Distribution -------------------- 41% | Hauler-Mutant 39% | Mutant 15% | Scavenger-Mutant 4% | Commander-Mutant Dominant Class ---------------- Mutant | -10/Materials Mutant | -10/Mines Mutant | -9/Materials Mutant | -9/Mines Hauler-Mutant | -9/Exiles Hauler-Mutant | -8/Mines Hauler-Mutant | -8/Materials Hauler-Mutant | -7/Factory Scavenger-Mutant | -7/Storage Commander-Mutant | -7/Recycling Scavenger-Mutant | -7/Scraptown Resources | -11 -10 -10 -9 -9 -9 -8 -8 -7 -7 -7 -7 ----------- Run | Yrd Mat Min Mat Min Exi Min Mat Fac Sto Rec Scr Matter Collected 8620 | 260 397 503 1141 281 20 337 1880 1627 852 752 570 Remotely 516 | . . . . . . . . . . . 516 Salvage Created 8914 | 118 557 170 1406 438 . 173 2286 1262 1330 324 850 Parts 485 | 10 49 8 94 22 . 20 113 75 47 3 44 Haulers Intercepted 20 | . 1 . 6 . . . 5 3 5 . . Recyclers Shooed 7 | . 1 . . . . . 1 3 1 1 . Parts Field Recycled . | . . . . . . . . . . . . Retrieved Matter . | . . . . . . . . . . . . Parts Self-Destructed . | . . . . . . . . . . . . Prevented . | . . . . . . . . . . . . Kills | -11 -10 -10 -9 -9 -9 -8 -8 -7 -7 -7 -7 ------- Run | Yrd Mat Min Mat Min Exi Min Mat Fac Sto Rec Scr Combat Hostiles Destroyed 171 | . 22 13 27 12 . 10 42 12 17 1 15 Melee 2 | . . 1 . . . . . . 1 . . Guns 81 | . 9 2 22 12 . 6 15 6 9 . . Cannons 2 | . . . . . . . . . 1 . 1 AOE 86 | . 13 10 5 . . 4 27 6 6 1 14 Classes Destroyed 23 | 2 7 1 2 1 . 1 1 1 . . 7 Worker 20 | 1 . . 3 . . 1 2 8 2 . 3 Builder 11 | . 1 . 1 . . 1 3 4 . 1 . Tunneler 8 | 5 1 . . . . . . 1 . . 1 Hauler 20 | . 1 . 6 . . . 5 3 5 . . Recycler 24 | . 1 . . . . . 6 9 6 2 . Mechanic 3 | . . . . . . . 3 . . . . Operator 9 | . 3 . 2 . . . 2 1 1 . . Watcher 8 | . 1 . 2 . . . 4 1 . . . Swarmer 32 | . 12 . 4 4 . 6 3 3 . . . Grunt 72 | . 10 4 16 4 . 3 25 3 7 . . Brawler 7 | . . . . 2 . . 3 . 1 . 1 Duelist 5 | . . . 2 . . . 2 . . . 1 Protector 1 | . . . . . . . . . . . 1 Sentry 22 | . . . 5 2 . . 8 . 6 1 . Hunter 5 | . . . . . . 1 1 2 1 . . Programmer 6 | . . . . . . . . 4 2 . . Bolteater 2 | . . . . . . . . . . . 2 Explorer 1 | . . . . . . . . . . . 1 Scientist 2 | . . . . . . . . . . . 2 Scrapper 6 | . . . . . . . . . . . 6 Elite 6 | . . . . . . . . . . . 6 Tinkerer 1 | . . . . . . . . . . . 1 Assembled 9 | . . 9 . . . . . . . . . Thug 1 | . . . 1 . . . . . . . . Best Kill Streak 19 | 3 5 3 5 2 . 5 7 7 8 1 19 Combat Bots Only 12 | . 3 3 4 2 . 3 4 3 6 1 12 Max Kills in Single Turn 5 | 1 3 2 2 1 . 2 4 3 3 1 5 Gunslinging 1 | . . . 1 . . 1 . . . . . Exploded 3 | . 3 2 1 . . 1 3 2 2 1 3 Melee 1 | . . 1 . . . . . . 1 . . Uniques/NPCs Destroyed . | . . . . . . . . . . . . Combat | -11 -10 -10 -9 -9 -9 -8 -8 -7 -7 -7 -7 -------- Run | Yrd Mat Min Mat Min Exi Min Mat Fac Sto Rec Scr Hostile Shots Fired 1108 | . 72 37 84 33 . 28 116 107 464 45 122 Missed 353 | . 24 8 22 6 . 10 36 23 171 16 37 Hits 755 | . 48 29 62 27 . 18 80 84 293 29 85 Melee 34 | . . . 1 1 . . 2 . 2 . 28 Projectile 721 | . 48 29 61 26 . 18 78 84 291 29 57 AOE 1 | . . . . . . . . . 1 . . Critical Strikes 20 | . . 2 1 . . . . 8 3 . 6 Part Disruptions 2 | . . . . . . . . 2 . . . Damage Taken 10265 | . 636 468 844 315 . 233 1356 1617 2465 164 2167 Core 1246 | . 107 38 48 38 . 26 181 63 209 9 527 Absorbed by Shields 169 | . . . . . . . . . . 64 105 Ignored by Resistances 261 | . . . . . . . . 66 173 22 . Regen/Repaired (Parts) 935 | . 36 . . . . . 537 195 167 . . Core Remaining (%) 70 | 100 . 42 . . . 72 67 . . . . Volleys Fired 541 | 15 62 27 89 27 . 19 108 88 67 19 20 Largest 2 | 2 2 2 2 2 . 2 2 2 2 1 2 Hottest 100 | 80 100 40 60 50 . 60 66 58 68 39 78 Shots Fired 962 | 30 107 42 169 54 . 36 200 156 113 23 32 Gun 763 | 30 92 30 161 54 . 18 157 135 79 7 . Cannon 28 | . . . . . . . . 6 17 1 4 Launcher 157 | . 13 12 8 . . 18 43 15 17 3 28 Special 14 | . 2 . . . . . . . . 12 . Kinetic 734 | . 65 30 161 54 . 18 157 141 96 8 4 Thermal 59 | 30 29 . . . . . . . . . . Explosive 157 | . 13 12 8 . . 18 43 15 17 3 28 Electromagnetic . | . . . . . . . . . . . . Robot Hit Streak 26 | 4 10 13 15 9 . 10 26 9 10 13 16 Robot Miss Streak 4 | 2 4 2 4 2 . 2 4 4 2 1 1 Penetration Max . | . . . . . . . . . . . . Secondary Targets 5 | . . . 1 1 . 1 1 . 1 . . Max Gunslinging Chain 1 | . . . 1 1 . 1 1 . 1 . . Shots Hit Robots 652 | 19 72 32 108 38 . 20 133 97 97 24 12 Core Hits 478 | 6 47 27 55 20 . 21 121 50 61 11 59 Critical Kills 4 | . . 1 . . . . 2 . 1 . . Critical Parts Destroyed 9 | . . . . 1 . . 2 3 1 2 . Critical Strikes 14 | . . 1 . 1 . . 4 3 3 2 . Destroy 5 | . . . . 1 . . 4 . . . . Smash 9 | . . 1 . . . . . 3 3 2 . Melee Attacks 120 | . 6 5 9 . . . 8 27 45 18 2 Impact 114 | . . 5 9 . . . 8 27 45 18 2 Slashing 6 | . 6 . . . . . . . . . . Piercing . | . . . . . . . . . . . . Sneak Attacks 19 | . 3 . . . . . 1 8 3 3 1 Combat Hostiles . | . . . . . . . . . . . . Follow-up Attacks . | . . . . . . . . . . . . Damage Inflicted 24055 | 233 2070 956 2547 623 . 934 6134 3599 3465 695 2799 Guns 8281 | 233 546 181 1788 623 . 181 1892 1595 1146 96 . Cannons 336 | . . . . . . . . . 257 23 56 Explosions 12804 | . 1407 715 750 . . 753 4132 1025 1201 150 2671 Melee 2582 | . 117 60 . . . . 95 951 861 426 72 Ramming 52 | . . . 9 . . . 15 28 . . . Kinetic 8196 | . 358 181 1788 623 . 181 1892 1595 1403 119 56 Thermal 863 | 233 630 . . . . . . . . . . Explosive 12362 | . 965 715 750 . . 753 4132 1025 1201 150 2671 Electromagnetic . | . . . . . . . . . . . . Impact 2465 | . . 60 . . . . 95 951 861 426 72 Slashing 117 | . 117 . . . . . . . . . . Piercing . | . . . . . . . . . . . . Highest Corruption 18 | . . . . . . . . 8 18 18 18 Average Corruption 11 | . . . . . . . . 4 12 18 18 Corruption Purged 11 | . . . . . . . . 11 . . . Corruption Blocked . | . . . . . . . . . . . . Effects 172 | . . . . . . . . 36 71 65 . Message Errors 45 | . . . . . . . . 10 18 17 . Matter Fused 30 | . . . . . . . . 6 10 14 . Heat Flow Errors 19 | . . . . . . . . 1 10 8 . Energy Discharges 25 | . . . . . . . . 5 10 10 . Parts Rejected 3 | . . . . . . . . . 1 2 . Parts Fused 2 | . . . . . . . . . 1 1 . Data Loss (minor) 19 | . . . . . . . . 4 11 4 . Data Loss (major) 7 | . . . . . . . . 5 2 . . Misfires 11 | . . . . . . . . 4 3 4 . Alerts 5 | . . . . . . . . 1 1 3 . Misdirections 2 | . . . . . . . . . . 2 . Weapon Failures 4 | . . . . . . . . . 4 . . Overload Shots . | . . . . . . . . . . . . Overflow Damage 1445 | . 145 2 55 . . . 158 492 173 276 144 Projectiles 29 | . . . . . . . . . 14 . 15 Explosions 409 | . 130 2 55 . . . 103 9 7 . 103 Melee 1007 | . 15 . . . . . 55 483 152 276 26 Knockbacks 13 | . . . 1 . . . 1 5 4 2 . Impact 10 | . . . 1 . . . 1 5 2 1 . Kinetic 2 | . . . . . . . . . 2 . . Secondary 1 | . . . . . . . . . . 1 . Self-Inflicted Damage 426 | . 167 74 54 . . 33 36 . 8 . 54 Shots 14 | . 6 2 2 . . 1 1 . 1 . 1 Rammed 4 | . . . 1 . . . 2 1 . . . Targets Rammed 5 | . . . 1 . . . 2 2 . . . Kicked . | . . . . . . . . . . . . Crushed 1 | . . . . . . . . 1 . . . Highest Temperature 286 | 72 132 50 55 74 . 99 135 156 280 286 136 Average Temperature 42 | 31 27 17 15 26 . 34 25 20 81 98 39 Received Heat Transfer 2370 | . 174 260 294 105 . 45 540 54 585 48 265 Effects 1 | . . . . . . . . . 1 . . Energy Bleed 1 | . . . . . . . . . 1 . . Siege Activations . | . . . . . . . . . . . . Martial Activations . | . . . . . . . . . . . . Shielding Activations . | . . . . . . . . . . . . Robots Disrupted . | . . . . . . . . . . . . Combat Hostiles . | . . . . . . . . . . . . Robots Corrupted 10 | . . . . . . . . 3 3 4 . Combat Hostiles 1 | . . . . . . . . . . 1 . Parts Fried 11 | . . . . . . . 1 6 2 2 . Impact Corruptions 32 | . . . . . . . 1 14 8 8 1 Robots Melted . | . . . . . . . . . . . . Combat Hostiles . | . . . . . . . . . . . . Parts Melted 4 | 3 . . . . . . . . 1 . . Heat Transferred 1250 | 525 725 . . . . . . . . . . Parts Sabotaged . | . . . . . . . . . . . . Parts Stolen 4 | . . . . . . . . . . . 4 Parts Stripped . | . . . . . . . . . . . . Power Chain Reactions . | . . . . . . . . . . . . Alert | -11 -10 -10 -9 -9 -9 -8 -8 -7 -7 -7 -7 ------- Run | Yrd Mat Min Mat Min Exi Min Mat Fac Sto Rec Scr Maximum Alert Level 3 | . 1 . 2 . . . 3 1 . . . Low Security (%) 71 | 100 34 100 58 100 . 100 37 76 100 100 . Level 1 17 | . 65 . 34 . . . 22 23 . . . Level 2 8 | . . . 6 . . . 31 . . . . Level 3 2 | . . . . . . . 9 . . . . Level 4 . | . . . . . . . . . . . . Level 5 . | . . . . . . . . . . . . High Security . | . . . . . . . . . . . . Max Security . | . . . . . . . . . . . . Peak Influence 872 | 10 390 63 409 176 . 124 872 396 182 106 . Initial 396 | . . 7 . 156 . . . 396 129 63 . Average 150 | 1 199 3 178 45 . 14 350 143 80 24 . Influence Increases 6162 | 30 901 214 1206 380 . 302 1539 592 761 237 . Destroy 0b10 Robot/C 3160 | . 440 80 700 240 . 200 840 240 340 80 . Destroy 0b10 Robot/NC 525 | 30 35 . 85 . . 10 125 135 70 35 . Destroy Leader 792 | . 84 20 192 50 . 40 198 88 120 . . Allied During Kill 103 | . . . 52 . . . . . . 51 . Successful Hack 174 | . 31 . 28 . . . 38 18 51 8 . Select Force Hacks 180 | . 60 . 60 . . . 60 . . . . Disable Machine 285 | . 75 15 30 . . . 75 . 60 30 . Destroy Structure 748 | . 146 99 59 . . 52 203 51 105 33 . Partial Spotted 15 | . . . . . . . . 15 . . . Lose Combat Pursuer 180 | . 30 . . 90 . . . 45 15 . . Influence Decreases 6162 | 30 880 235 803 783 . 300 669 1179 882 401 . Entered New Map 996 | . . 14 . 247 . . 2 476 156 101 . Time Decay 4347 | 30 550 201 535 526 . 300 657 683 575 290 . Lost Part 200 | . 30 20 . 10 . . 10 20 100 10 . Lost Ally 79 | . . . 79 . . . . . . . . Purge Threat 540 | . 300 . 189 . . . . . 51 . . Squads Dispatched 25 | . 4 . 3 . . . 6 7 5 . . Investigation 7 | . 2 . 2 . . . 3 . . . . Extermination 8 | . . . . . . . . 5 3 . . Reinforcement 8 | . 2 . 1 . . . 1 2 2 . . Assault 2 | . . . . . . . 2 . . . . Garrison . | . . . . . . . . . . . . Intercept . | . . . . . . . . . . . . Searches Triggered . | . . . . . . . . . . . . Construction Impeded 1 | . . . . . . . . 1 . . . Haulers Reinforced 1 | . . . . . . . . . 1 . . Active Scanning Responses . | . . . . . . . . . . . . Cargo Convoy Interrupts . | . . . . . . . . . . . . Stealth | -11 -10 -10 -9 -9 -9 -8 -8 -7 -7 -7 -7 --------- Run | Yrd Mat Min Mat Min Exi Min Mat Fac Sto Rec Scr Distress Signals 14 | . 4 1 2 . . . 3 . 4 . . Communications Jammed . | . . . . . . . . . . . . Distress Signals . | . . . . . . . . . . . . Times Spotted 266 | . 42 19 43 16 . 9 68 24 22 5 18 Peak Tracking Total 9 | . 4 4 5 4 . 3 5 3 4 2 9 Tactical Retreats 14 | . 1 5 . 4 . . . 3 1 . . Traps | -11 -10 -10 -9 -9 -9 -8 -8 -7 -7 -7 -7 ------- Run | Yrd Mat Min Mat Min Exi Min Mat Fac Sto Rec Scr Traps Triggered 7 | . . . 1 1 . . 4 1 . . . Indirectly . | . . . . . . . . . . . . Trap Hack Attempts . | . . . . . . . . . . . . Triggered . | . . . . . . . . . . . . Disarmed . | . . . . . . . . . . . . Reprogrammed . | . . . . . . . . . . . . Reused . | . . . . . . . . . . . . Traps Extracted . | . . . . . . . . . . . . Installed . | . . . . . . . . . . . . Triggered . | . . . . . . . . . . . . Machines | -11 -10 -10 -9 -9 -9 -8 -8 -7 -7 -7 -7 ---------- Run | Yrd Mat Min Mat Min Exi Min Mat Fac Sto Rec Scr Machines Disabled 25 | . 5 1 2 . . . 5 . 4 2 6 Max in Single Turn 2 | . 2 1 1 . . . 1 . 1 1 1 Machines Repaired . | . . . . . . . . . . . . Machines Dismantled . | . . . . . . . . . . . . Machines Sabotaged . | . . . . . . . . . . . . Overloaded Fab Kills . | . . . . . . . . . . . . Hacking | -11 -10 -10 -9 -9 -9 -8 -8 -7 -7 -7 -7 --------- Run | Yrd Mat Min Mat Min Exi Min Mat Fac Sto Rec Scr Machines Accessed 64 | . 9 . 16 1 2 . 13 6 9 7 1 Terminals 40 | . 6 . 12 . . . 8 3 7 4 . Fabricators . | . . . . . . . . . . . . Repair Stations 7 | . 1 . 1 . . . 2 2 1 . . Recycling Units 9 | . 2 . 2 . . . 2 1 1 1 . Scanalyzers 2 | . . . 1 . . . 1 . . . . Garrison Access . | . . . . . . . . . . . . Total Hacks 220 | . 32 . 50 1 2 . 50 16 21 39 9 Successful 130 | . 16 . 27 1 2 . 29 7 12 27 9 Failed 90 | . 16 . 23 . . . 21 9 9 12 . Catastrophic 4 | . . . . . . . 1 1 . 2 . Database Lockouts . | . . . . . . . . . . . . Manual 141 | . 29 . 45 . 1 . 31 7 16 12 . Terminals 132 | . 27 . 43 . . . 27 7 16 12 . Fabricators . | . . . . . . . . . . . . Repair Stations 31 | . 3 . 2 . . . 15 7 4 . . Recycling Units 15 | . 2 . 3 . . . 4 2 1 3 . Scanalyzers 6 | . . . 2 . . . 4 . . . . Garrison Access . | . . . . . . . . . . . . Terminal Hacks 54 | . 4 . 5 1 2 . 2 . 6 25 9 Record 35 | . . . 1 . 1 . . . . 24 9 Robot Analysis 1 | . 1 . . . . . . . . . . Open Door 3 | . . . . 1 . . . . 2 . . Branch Access Points 2 | . . . . . . . . . 1 1 . Terminal Index 3 | . 1 . 1 . . . 1 . . . . Unreport Threat 6 | . 2 . 2 . . . . . 2 . . Hauler Manifests 2 | . . . 1 . . . 1 . . . . Registered Components 1 | . . . . . . . . . 1 . . Proto ID Catalog 1 | . . . . . 1 . . . . . . Fabricator Hacks . | . . . . . . . . . . . . Repair Station Hacks 22 | . 2 . 1 . . . 11 5 3 . . Scan Component 13 | . 1 . 1 . . . 6 3 2 . . Repair 9 | . 1 . . . . . 5 2 1 . . Recycling Unit Hacks 3 | . . . . . . . . . 1 2 . Process 1 | . . . . . . . . . . 1 . Report Inventory 1 | . . . . . . . . . 1 . . Retrieve Matter 1 | . . . . . . . . . . 1 . Scanalyzer 6 | . . . 2 . . . 4 . . . . Insert Component 3 | . . . 1 . . . 2 . . . . Analyze 3 | . . . 1 . . . 2 . . . . Garrison Access Hacks . | . . . . . . . . . . . . Unauthorized Hacks 45 | . 10 . 19 . . . 12 2 2 . . Terminals 39 | . 8 . 17 . . . 10 2 2 . . Assimilate 2 | . 1 . 1 . . . . . . . . Botnet 13 | . 1 . 4 . . . 4 2 2 . . Operators 2 | . 1 . 1 . . . . . . . . Skim 22 | . 5 . 11 . . . 6 . . . . Fabricators . | . . . . . . . . . . . . Repair Stations . | . . . . . . . . . . . . Recycling Units 6 | . 2 . 2 . . . 2 . . . . Tunnel 6 | . 2 . 2 . . . 2 . . . . Scanalyzers . | . . . . . . . . . . . . Garrison Access . | . . . . . . . . . . . . Data Cores Recovered 2 | . . . 1 . . . . . 1 . . Used . | . . . . . . . . . . . . Hacking Detections 50 | . 7 . 14 . . . 12 6 6 5 . Full Trace Events . | . . . . . . . . . . . . Feedback Events . | . . . . . . . . . . . . Feedback Blocked . | . . . . . . . . . . . . Robot Schematics Acquired . | . . . . . . . . . . . . Robots Built . | . . . . . . . . . . . . Authchips . | . . . . . . . . . . . . Time . | . . . . . . . . . . . . Total Robot Build Rating . | . . . . . . . . . . . . Part Schematics Acquired 3 | . . . 1 . . . 2 . . . . Parts Built . | . . . . . . . . . . . . Authchips . | . . . . . . . . . . . . Time . | . . . . . . . . . . . . Total Part Build Rating . | . . . . . . . . . . . . Parts Repaired 9 | . 1 . . . . . 5 2 1 . . Time 299 | . 26 . . . . . 178 76 19 . . Parts Recycled . | . . . . . . . . . . . . Recycled Matter 8 | . . . . . . . . . . 8 . Retrieved Matter . | . . . . . . . . . . . . Retrieved Components . | . . . . . . . . . . . . Parts Scanalyzed 3 | . . . 1 . . . 2 . . . . Part Schematics Acquired 3 | . . . 1 . . . 2 . . . . Parts Damaged . | . . . . . . . . . . . . Bothacking | -11 -10 -10 -9 -9 -9 -8 -8 -7 -7 -7 -7 ------------ Run | Yrd Mat Min Mat Min Exi Min Mat Fac Sto Rec Scr Used RIF Installer . | . . . . . . . . . . . . Robots Hacked . | . . . . . . . . . . . . Non-combat . | . . . . . . . . . . . . Combat . | . . . . . . . . . . . . Robot Hacks Applied . | . . . . . . . . . . . . Relay Couplers Released . | . . . . . . . . . . . . Fabnet Peak Effective % . | . . . . . . . . . . . . Robots Rewired 9 | . . . . . . . . . . 9 . Allies Hacked . | . . . . . . . . . . . . Hacks Repelled . | . . . . . . . . . . . . Allies | -11 -10 -10 -9 -9 -9 -8 -8 -7 -7 -7 -7 -------- Run | Yrd Mat Min Mat Min Exi Min Mat Fac Sto Rec Scr Total Allies 15 | . 1 5 . . . . . . . 9 . Largest Group 9 | . 1 5 5 . . . . . . 9 8 Highest-Rated Group 236 | . 10 81 81 . . . . . . 236 203 Highest-Rated Ally 40 | . 10 31 31 . . . . . . 40 40 Total Orders 1 | . . . . . . . . . . . 1 STAY 1 | . . . . . . . . . . . 1 Ally Attacks 106 | . . 26 45 . . . . . . 24 11 Total Damage 1922 | . . 244 462 . . . . . . 847 369 Kills 21 | . . 2 11 . . . . . . 4 4 Allies Corrupted . | . . . . . . . . . . . . Allies Melted . | . . . . . . . . . . . . Intel | -11 -10 -10 -9 -9 -9 -8 -8 -7 -7 -7 -7 ------- Run | Yrd Mat Min Mat Min Exi Min Mat Fac Sto Rec Scr Active Infowar (turns) 2585 | 11 279 . . . . . . 1 . . 2294 Structural 2294 | . . . . . . . . . . . 2294 Seismic 291 | 11 279 . . . . . . 1 . . . Robot Analysis Total 1 | . 1 . . . . . . . . . . Derelict Logs Recovered 4 | . . 2 . 2 . . . . . . . Drone Launches . | . . . . . . . . . . . . Drone Recoveries . | . . . . . . . . . . . . Exploration | -11 -10 -10 -9 -9 -9 -8 -8 -7 -7 -7 -7 ------------- Run | Yrd Mat Min Mat Min Exi Min Mat Fac Sto Rec Scr Turns Passed 32524 | 253 1783 3735 4115 2256 1745 2555 6465 3068 1855 1286 3408 Spaces Moved 11027 | 121 667 666 1471 878 565 617 1465 1047 805 691 2034 Core 17 | 2 . . . . . . . . . . 15 Treads 10463 | 119 120 666 1471 878 565 617 1465 1047 805 691 2019 Legs . | . . . . . . . . . . . . Wheels 547 | . 547 . . . . . . . . . . Hover . | . . . . . . . . . . . . Flight . | . . . . . . . . . . . . Fastest Speed 50 | 50 160 320 240 240 240 400 320 225 148 160 50 Average Speed 236 | 158 177 320 240 240 305 400 320 227 167 160 159 Slowest Speed 400 | 160 320 320 320 240 400 400 320 311 230 160 160 Overloaded Moves . | . . . . . . . . . . . . Propulsion Burnouts . | . . . . . . . . . . . . Robots Hopped . | . . . . . . . . . . . . Potential Cave-ins 4 | . . . . . . . . 4 . . . Cave-ins Triggered 1 | . . . . . . . . 1 . . . Exploration Rate (%) 74 | 7 93 98 95 96 71 100 82 21 72 99 58 Regions Visited 11 Branch Regions 7 Pre-discovered Areas 13 | . 2 1 5 . 1 . 4 . . . . Known Exits Taken 6 | . . 1 1 . . 1 1 1 1 . . Unknown Exits Taken 5 | 1 1 . . 1 1 . . . . 1 . Scrap Searched 11 | . . 1 . 1 . 1 . . . . 8 Spaces Dug 90 | . 4 4 8 . . 9 6 19 9 21 10 Terrain Destroyed 1055 | . 160 116 61 . . 98 230 54 156 45 135 Melee 33 | . 3 4 8 . . . 6 2 9 1 . Projectile 12 | . 1 . . . . . . 7 4 . . AOE 1010 | . 156 112 53 . . 98 224 45 143 44 135 Terrain Rammed . | . . . . . . . . . . . . Walls Destroyed . | . . . . . . . . . . . . Machines Disabled . | . . . . . . . . . . . . Actions | -11 -10 -10 -9 -9 -9 -8 -8 -7 -7 -7 -7 --------- Run | Yrd Mat Min Mat Min Exi Min Mat Fac Sto Rec Scr Total 16525 | 149 1155 2232 1933 987 590 673 3065 1574 1154 838 2175 Wait 4191 | 1 359 1508 221 69 . 32 1364 327 157 81 72 Move 11015 | 120 666 665 1470 877 564 616 1464 1045 804 690 2034 Hop . | . . . . . . . . . . . . Pick Up 171 | 6 24 9 42 2 12 2 24 13 16 3 18 Fast Attach 59 | 7 3 . 9 1 2 . 6 10 15 3 3 Attach 33 | . 2 4 3 3 . . 3 6 3 2 7 Detach 11 | . 2 . 1 . 1 . . 4 1 . 2 Swap 185 | . 22 7 32 3 . 3 52 28 24 7 7 Drop 181 | . 9 7 56 5 11 1 34 23 22 3 10 Fire 541 | 15 62 27 89 27 . 19 108 88 67 19 20 Melee 120 | . 6 5 9 . . . 8 27 45 18 2 Ram . | . . . . . . . . . . . . Kick . | . . . . . . . . . . . . Crush 5 | . . . 1 . . . 2 2 . . . Escape Stasis 1 | . . . . . . . . 1 . . . Rewire 12 | . . . . . . . . . . 12 . Trap . | . . . . . . . . . . . . Miscellaneous . | . . . . . . . . . . . . Route ------- -11/Scrapyard -10/Materials (discovered 6 exits: *Mat x3 / [*Min x2] / Sub) -10/Mines (discovered 3 exits: *Mat x2 / Sub) -9/Materials (discovered 4 exits: *Mat x3 / *Min) -9/Mines (discovered 4 exits: *Mat x2 / *Exi / [*Zio]) -9/Exiles -8/Mines (discovered 2 exits: *Mat x2) -8/Materials (discovered 2 exits: *Fac x2) -7/Factory (discovered 3 exits: Fac x2 / *Sto) -7/Storage -7/Recycling (discovered 2 exits: *Fac / *Scr) -7/Scraptown (discovered 1 exit: *Fac) History --------- Turn | Location | Event 31 | -11/Scrapyard | Discovered new exit (range 15) 254 | -11/Scrapyard | Entered Materials 310 | -10/Materials | Build established: Mutant 335 | -10/Materials | Discovered new exit (range 3) 618 | -10/Materials | Discovered new exit (range 15) 1119 | -10/Materials | Discovered new exit (range 12) 1637 | -10/Materials | Discovered new exit (range 16) 1710 | -10/Materials | Learned 2 Storage zone layouts 1728 | -10/Materials | Repaired Lgt. Treads 1750 | -10/Materials | Discovered new exit (range 12) 1769 | -10/Materials | Identified exit to Subcaves 1816 | -10/Materials | Learned Storage security intel 1854 | -10/Materials | Learned location of 2 exits from Mines 1901 | -10/Materials | Loaded intel: 25 non-interactive machine locations 1969 | -10/Materials | Learned Storage security intel 2018 | -10/Materials | Identified exit to Materials 2037 | -10/Materials | Entered Mines 2284 | -10/Mines | Assembled infested the area 3046 | -10/Mines | A weapon hastily lodged in a ceiling crevice suddenly fell to the ground 3239 | -10/Mines | Core integrity fell below 50% 3485 | -10/Mines | Received a Rocket Launcher from a helpful Derelict 3612 | -10/Mines | Found DCF Scrap (15 items) 5026 | -10/Mines | Assisted by bots powering up and referring to "LRC-V3" 5182 | -10/Mines | Learned location of Recycling (-7) 5772 | -10/Mines | Entered Materials 5772 | -9/Materials | Accompanied by 5 allies 5772 | -9/Materials | Evolved 2 slots: Propulsion x1, Utility x1 5777 | -9/Materials | Led the pair of lost Derelicts to an unsafe place 6644 | -9/Materials | Lost 3 allies 6850 | -9/Materials | Discovered new exit (range 7) 6946 | -9/Materials | Learned Storage stockpile data 7009 | -9/Materials | Learned location of 1 exit from Recycling 7104 | -9/Materials | Identified exit to Mines 7104 | -9/Materials | Identified exit to Materials 7138 | -9/Materials | Learned Storage emergency access door positions 7173 | -9/Materials | Loaded intel: 45 non-interactive machine locations 7196 | -9/Materials | Learned 4 Materials zone layouts 7230 | -9/Materials | Learned location of 1 exit from Materials 9188 | -9/Materials | Learned Storage emergency access door positions 9239 | -9/Materials | Learned Storage stockpile data 9301 | -9/Materials | Learned Storage stockpile data 9887 | -9/Materials | Entered Mines 10093 | -9/Mines | A Derelict revealed a hidden shortcut to a safe place 10298 | -9/Mines | Found a hidden stash of uninstalled traps 10763 | -9/Mines | Found a Scrap Suit stashed away for nefarious purposes 10978 | -9/Mines | Learned Materials security intel 11014 | -9/Mines | Joined a pair of Derelicts in attacking an 0b10 outpost 11432 | -9/Mines | Deemed a non-threat by the Exiles lab entrance 11432 | -9/Mines | Discovered new exit (range 5) 11529 | -9/Mines | Met a Derelict who couldn't figure out how to use a Trap Extractor 12143 | -9/Mines | Entered Exiles 12203 | -9/Exiles | Met 8R-AWN 12242 | -9/Exiles | Met EX-HEX 12314 | -9/Exiles | Met EX-BIN 12343 | -9/Exiles | Aligned with FarCom system 12345 | -9/Exiles | Given EX-Vault access code 12403 | -9/Exiles | Opened EX-Vault 12422 | -9/Exiles | Found Superbattery 12452 | -9/Exiles | Found Army-in-a-Box 12513 | -9/Exiles | Warned to stay clear of 0b10 Research branches 12578 | -9/Exiles | Met EX-DEC 12880 | -9/Exiles | Learned location of Zion (-7) 13250 | -9/Exiles | Build established: Hauler-Mutant 13832 | -9/Exiles | Discovered new exit (range 14) 13888 | -9/Exiles | Left Exiles lab with Army-in-a-Box 13888 | -9/Exiles | Entered Mines 15754 | -8/Mines | Discovered exit to Materials (range 7) 16419 | -8/Mines | Discovered exit to Materials (range 7) 16443 | -8/Mines | Entered Materials 16443 | -8/Materials | Evolved 2 slots: Propulsion x2 16444 | -8/Materials | Identified exit to Factory 16971 | -8/Materials | Repaired Imp. Treads 18142 | -8/Materials | Repaired Minigun 18181 | -8/Materials | Repaired Hrd. Medium Armor Plating 18215 | -8/Materials | Repaired Mni. Grenade Launcher 18254 | -8/Materials | Repaired Minigun 20798 | -8/Materials | Learned location of Lower Caves (-6) 20843 | -8/Materials | First assault squad dispatched 20852 | -8/Materials | Learned 2 Storage zone layouts 20895 | -8/Materials | Learned Recycling recycling unit intel 20926 | -8/Materials | Learned 2 Storage zone layouts 20949 | -8/Materials | Learned Factory stockpile data 20961 | -8/Materials | Learned Storage trap positions 21014 | -8/Materials | Learned Factory security intel 22908 | -8/Materials | Entered Factory 22908 | -7/Factory | Evolved 2 slots: Propulsion x1, Utility x1 22909 | -7/Factory | Identified exit to Factory 22909 | -7/Factory | Identified exit to Storage 23174 | -7/Factory | Repaired Hrd. Medium Armor Plating 23213 | -7/Factory | Repaired Minigun 24332 | -7/Factory | Crushed by falling debris 25976 | -7/Factory | Entered Storage 25977 | -7/Storage | Identified exit to Recycling 25979 | -7/Storage | Loaded intel: 22 trap records 26120 | -7/Storage | Repaired Adv. Treads 26364 | -7/Storage | System corruption reached 10% 26404 | -7/Storage | Lost 5 parts (1p3n1u) 26627 | -7/Storage | Build established: Scavenger-Mutant 27770 | -7/Storage | Used back door to open Recycling access 27831 | -7/Storage | Entered Recycling 27832 | -7/Recycling | Identified exit to Factory 27833 | -7/Recycling | Loaded intel: 6 recycling unit locations 28194 | -7/Recycling | Build established: Commander-Mutant 28901 | -7/Recycling | Build established: Scavenger-Mutant 29022 | -7/Recycling | Scanned before Scraplab entrance 29073 | -7/Recycling | Discovered new exit (range 3) 29117 | -7/Recycling | Entered Scraptown 29117 | -7/Scraptown | Accompanied by 8 allies 29121 | -7/Scraptown | System corruption cleaned by C-Scrubber 29406 | -7/Scraptown | Heard Great Nut preacher, LISTEN AND RECITE! 29890 | -7/Scraptown | Visited Shadow of the Wyrm 29933 | -7/Scraptown | Visited Spacefarers 30305 | -7/Scraptown | Discovered exit to Factory (range 5) 30445 | -7/Scraptown | Visited IN-MT5's Study 30475 | -7/Scraptown | Visited Bundlers 30612 | -7/Scraptown | Visited Awakened 30723 | -7/Scraptown | Turned away by UFD registrar 31953 | -7/Scraptown | Build established: Commander-Mutant 32330 | -7/Scraptown | Attacked by Scraptown defenders 32404 | -7/Scraptown | Lost 6 allies 32410 | -7/Scraptown | Destroyed 12 combat bots 32502 | -7/Scraptown | Core integrity fell below 50% 32518 | -7/Scraptown | Released all parts (2) 32520 | -7/Scraptown | Core integrity fell below 20% 32525 | -7/Scraptown | Destroyed by Triborg with Siege Cannon Last Messages --------------- 32514_ Hpw. Tractor Beam destroyed. 32514_ Hrd. Medium Armor Plating destroyed. 32515_ Penetrated by Siege Slug. 32515_ Ovr. Treads destroyed. 32515_ Lgt. Treads destroyed. 32516_ The unstable cave ceiling collapses. 32516_ Imp. Deuterium Engine destroyed. 32517_ Ovr. Treads ripped off. 32517_ Penetrated by Siege Slug. 32517_ Knocked back. 32518_ Released Hcp. Storage Unit. 32518_ Released Mak. Hammer. 32519_ Penetrated by Siege Slug. 32519_ Knocked back. 32519_ Penetrated by Siege Slug. 32521_ The unstable cave ceiling collapses. 32521_ Siege Slug penetrates Earth. 32521_ Siege Slug penetrates Machine. 32524_ Triborg exits siege mode. 32525_ Penetrated by Siege Slug. Map ----- +----------------------------------------------------+ | | | | | | | | | | | | | | | | | | | | | | | | | | | | | | | | | | | | | ####?????????????#### ?????????????????????? | | ####?????????????##### # # #????????????????????? | | ""##?????????????##" =!%! ##################### | | "##?###########?##"[